[Event "*** Titled Tuesday Blitz"]
[Site "Chess.com"]
[Date "2019.12.03"]
[Round "2"]
[White "Winehouse83"]
[Black "XDPS"]
[Result "1-0"]
[WhiteElo "2546"]
[BlackElo "2747"]
[TimeControl "180+2"]
[EndTime "13:23:33 PST"]
[Termination "Winehouse83 won by resignation"]

1. d4 {[%clk 0:03:00.3]} 1... d5 {[%clk 0:03:00.7]} 2. c4 {[%clk 0:02:57.5]}
2... c6 {[%clk 0:02:59.2]} 3. Nf3 {[%clk 0:02:58.2]} 3... Nf6 {[%clk 0:02:58.9]}
4. Nc3 {[%clk 0:02:58.9]} 4... e6 {[%clk 0:02:59.7]} 5. e3 {[%clk 0:02:57.1]}
5... Nbd7 {[%clk 0:03:00.3]} 6. Qc2 {[%clk 0:02:56.4]} 6... Bd6 {[%clk
0:02:55.4]} 7. g4 {[%clk 0:02:57.1]} 7... Bb4 {[%clk 0:02:54.4]} 8. Rg1 {[%clk
0:02:57.1]} 8... Qe7 {[%clk 0:02:50.4]} 9. Bd3 {[%clk 0:02:53.7]} 9... e5 {[%clk
0:02:40.3]} 10. g5 {[%clk 0:02:46.1]} 10... e4 {[%clk 0:02:25.3]} 11. gxf6
{[%clk 0:02:43.3]} 11... Nxf6 {[%clk 0:02:27.2]} 12. Be2 {[%clk 0:02:38.6]}
12... exf3 {[%clk 0:02:26.9]} 13. Bxf3 {[%clk 0:02:39.7]} 13... O-O {[%clk
0:02:27]} 14. Bd2 {[%clk 0:02:33.6]} 14... Bxc3 {[%clk 0:02:27.8]} 15. Bxc3
{[%clk 0:02:34.3]} 15... Ne4 {[%clk 0:02:28.5]} 16. Bxe4 {[%clk 0:02:34.1]}
16... Qxe4 {[%clk 0:02:28.2]} 17. Qxe4 {[%clk 0:02:34.6]} 17... dxe4 {[%clk
0:02:30.1]} 18. d5 {[%clk 0:02:35.7]} 18... f6 {[%clk 0:02:29.9]} 19. O-O-O
{[%clk 0:02:33]} 19... cxd5 {[%clk 0:02:26.8]} 20. cxd5 {[%clk 0:02:30.2]} 20...
Bd7 {[%clk 0:02:25.6]} 21. Rd4 {[%clk 0:02:30.1]} 21... Rfe8 {[%clk 0:02:25.1]}
22. h4 {[%clk 0:02:17.9]} 22... Kf8 {[%clk 0:02:25.5]} 23. Kd2 {[%clk
0:02:13.2]} 23... Kf7 {[%clk 0:02:26]} 24. a4 {[%clk 0:02:08.9]} 24... b6 {[%clk
0:02:19.8]} 25. Rc1 {[%clk 0:02:04.5]} 25... Rac8 {[%clk 0:02:20.3]} 26. b3
{[%clk 0:02:00.1]} 26... h5 {[%clk 0:02:16.7]} 27. Bb2 {[%clk 0:01:39.8]} 27...
Rxc1 {[%clk 0:02:17]} 28. Bxc1 {[%clk 0:01:41.7]} 28... g5 {[%clk 0:02:16.3]}
29. hxg5 {[%clk 0:01:33]} 29... fxg5 {[%clk 0:02:18.2]} 30. Rc4 {[%clk
0:01:34.2]} 30... Bf5 {[%clk 0:02:13.3]} 31. Rc7+ {[%clk 0:01:31.9]} 31... Re7
{[%clk 0:02:14.3]} 32. d6 {[%clk 0:01:31.9]} 32... Rd7 {[%clk 0:02:07]} 33. Bb2
{[%clk 0:01:29.1]} 33... h4 {[%clk 0:02:03.8]} 34. Be5 {[%clk 0:01:27.3]} 34...
Ke6 {[%clk 0:02:04.2]} 35. Rxd7 {[%clk 0:01:26.7]} 35... Kxd7 {[%clk 0:02:04.6]}
36. Bf6 {[%clk 0:01:13.4]} 36... h3 {[%clk 0:01:57.5]} 37. Be5 {[%clk
0:01:13.8]} 37... Kc6 {[%clk 0:01:58.4]} 38. Kc3 {[%clk 0:01:14.2]} 38... Kd5
{[%clk 0:01:58.1]} 39. Bg3 {[%clk 0:01:13]} 39... Bd7 {[%clk 0:01:59.2]} 40. Kd2
{[%clk 0:01:04.5]} 40... Kc5 {[%clk 0:01:42.7]} 41. Kc3 {[%clk 0:01:02.6]} 41...
Be6 {[%clk 0:01:43.1]} 42. b4+ {[%clk 0:00:57.2]} 42... Kd5 {[%clk 0:01:43.9]}
43. a5 {[%clk 0:00:54.2]} 43... b5 {[%clk 0:01:36.5]} 44. Bh2 {[%clk 0:00:55]}
44... a6 {[%clk 0:01:37]} 45. Bg3 {[%clk 0:00:55.3]} 45... Bd7 {[%clk 0:01:37]}
46. Bh2 {[%clk 0:00:55.8]} 46... Bg4 {[%clk 0:00:39.8]} 47. Bg3 {[%clk
0:00:56.4]} 47... Bc8 {[%clk 0:00:41.5]} 48. Bh2 {[%clk 0:00:57.2]} 48... Ke6
{[%clk 0:00:20.8]} 49. Kd4 {[%clk 0:00:57.5]} 49... Kf5 {[%clk 0:00:22.4]} 50.
Bg3 {[%clk 0:00:57.6]} 50... Bd7 {[%clk 0:00:22.5]} 51. Bh2 {[%clk 0:00:58.3]}
51... Bc6 {[%clk 0:00:23.3]} 52. Kc5 {[%clk 0:00:57]} 52... Bd7 {[%clk
0:00:24.5]} 53. Kb6 {[%clk 0:00:32.4]} 53... Kg4 {[%clk 0:00:25.3]} 54. Kxa6
{[%clk 0:00:18.6]} 54... Kf3 {[%clk 0:00:26.7]} 55. Bg3 {[%clk 0:00:17.6]} 55...
Kg2 {[%clk 0:00:27]} 56. Kb7 {[%clk 0:00:18.7]} 56... h2 {[%clk 0:00:28.9]} 57.
Bxh2 {[%clk 0:00:19.6]} 57... Kxh2 {[%clk 0:00:30.8]} 58. a6 {[%clk 0:00:21]}
58... Kg2 {[%clk 0:00:32]} 59. a7 {[%clk 0:00:22.1]} 59... Kxf2 {[%clk
0:00:33.6]} 60. a8=Q {[%clk 0:00:23]} 60... g4 {[%clk 0:00:35.2]} 61. Kc7 {[%clk
0:00:21.7]} 61... Be6 {[%clk 0:00:35.8]} 62. Qf8+ {[%clk 0:00:18.4]} 62... Kxe3
{[%clk 0:00:36.5]} 63. Qh6+ {[%clk 0:00:19.5]} 63... Kf3 {[%clk 0:00:37]} 64.
Qxe6 {[%clk 0:00:20.7]} 64... g3 {[%clk 0:00:38.9]} 65. d7 {[%clk 0:00:21.3]}
65... g2 {[%clk 0:00:39.9]} 66. Qf5+ {[%clk 0:00:22.2]} 66... Ke3 {[%clk
0:00:40.9]} 67. Qg4 {[%clk 0:00:22.8]} 67... Kf2 {[%clk 0:00:42.1]} 68. Qxe4
{[%clk 0:00:23.6]} 68... g1=Q {[%clk 0:00:43.4]} 69. Qd4+ {[%clk 0:00:24.9]} 1-0

[Event "*** Titled Tuesday Blitz"]
[Site "Chess.com"]
[Date "2019.12.03"]
[Round "2"]
[White "SONOFHOLYGOD"]
[Black "Misticpikachu"]
[Result "1/2-1/2"]
[WhiteElo "2506"]
[BlackElo "2293"]
[TimeControl "180+2"]
[EndTime "13:23:40 PST"]
[Termination "Game drawn by repetition"]

1. d4 {[%clk 0:03:01.9]} 1... d5 {[%clk 0:02:58.9]} 2. c4 {[%clk 0:03:02.9]}
2... e6 {[%clk 0:02:59.8]} 3. cxd5 {[%clk 0:03:04.1]} 3... exd5 {[%clk
0:03:00.7]} 4. Nc3 {[%clk 0:03:06]} 4... Nf6 {[%clk 0:03:01.2]} 5. Bg5 {[%clk
0:03:07.5]} 5... Be7 {[%clk 0:03:01.4]} 6. e3 {[%clk 0:03:09]} 6... O-O {[%clk
0:03:01.8]} 7. Bd3 {[%clk 0:03:10.5]} 7... c6 {[%clk 0:03:01]} 8. Qc2 {[%clk
0:03:10]} 8... Re8 {[%clk 0:03:01.6]} 9. Nge2 {[%clk 0:02:51.9]} 9... Nbd7
{[%clk 0:02:59.5]} 10. Kf1 {[%clk 0:02:52.4]} 10... Nf8 {[%clk 0:02:57]} 11. h3
{[%clk 0:02:38.5]} 11... Ng6 {[%clk 0:02:34.5]} 12. g4 {[%clk 0:02:31.1]} 12...
Bd6 {[%clk 0:02:20.7]} 13. Rd1 {[%clk 0:02:10.7]} 13... h6 {[%clk 0:01:44.5]}
14. Bxg6 {[%clk 0:02:09.4]} 14... hxg5 {[%clk 0:01:43.1]} 15. Bd3 {[%clk
0:02:05.3]} 15... Qe7 {[%clk 0:01:35.3]} 16. Kg2 {[%clk 0:02:05.6]} 16... b5
{[%clk 0:01:07.2]} 17. a3 {[%clk 0:02:04]} 17... a5 {[%clk 0:01:07.1]} 18. Ng3
{[%clk 0:02:03.1]} 18... Bxg3 {[%clk 0:01:04.5]} 19. Kxg3 {[%clk 0:02:03.9]}
19... b4 {[%clk 0:01:02.4]} 20. axb4 {[%clk 0:02:03.7]} 20... axb4 {[%clk
0:01:04.3]} 21. Ne2 {[%clk 0:02:05]} 21... Qd6+ {[%clk 0:01:00.8]} 22. Kg2
{[%clk 0:02:05.9]} 22... Ne4 {[%clk 0:00:56.9]} 23. Bxe4 {[%clk 0:02:06.8]}
23... Rxe4 {[%clk 0:00:56.8]} 24. Ng3 {[%clk 0:02:07.8]} 24... Re7 {[%clk
0:00:53.2]} 25. Rc1 {[%clk 0:02:01.7]} 25... Bd7 {[%clk 0:00:53.8]} 26. Ra1
{[%clk 0:02:00]} 26... Rae8 {[%clk 0:00:53.8]} 27. Rhc1 {[%clk 0:01:52.7]} 27...
g6 {[%clk 0:00:44.1]} 28. Qc5 {[%clk 0:01:52.9]} 28... Qe6 {[%clk 0:00:35.1]}
29. Re1 {[%clk 0:01:04.9]} 29... f5 {[%clk 0:00:35.5]} 30. f3 {[%clk 0:01:04.8]}
30... Qf6 {[%clk 0:00:29]} 31. Qxb4 {[%clk 0:00:59.1]} 31... f4 {[%clk 0:00:29]}
32. exf4 {[%clk 0:00:54.1]} 32... Rxe1 {[%clk 0:00:29]} 33. Rxe1 {[%clk
0:00:54.3]} 33... Rxe1 {[%clk 0:00:30.4]} 34. Qxe1 {[%clk 0:00:55.9]} 34... Qxd4
{[%clk 0:00:24.9]} 35. fxg5 {[%clk 0:00:50.5]} 35... Qxb2+ {[%clk 0:00:25]} 36.
Ne2 {[%clk 0:00:50.1]} 36... c5 {[%clk 0:00:17.9]} 37. Kg3 {[%clk 0:00:50.5]}
37... Qe5+ {[%clk 0:00:18.4]} 38. Kf2 {[%clk 0:00:50.7]} 38... d4 {[%clk
0:00:19.4]} 39. Ng3 {[%clk 0:00:37.1]} 39... Qxe1+ {[%clk 0:00:20.3]} 40. Kxe1
{[%clk 0:00:39]} 40... Bc6 {[%clk 0:00:21.5]} 41. f4 {[%clk 0:00:37.9]} 41...
Bg2 {[%clk 0:00:21.5]} 42. h4 {[%clk 0:00:30.9]} 42... c4 {[%clk 0:00:20.6]} 43.
Ne2 {[%clk 0:00:30.8]} 43... d3 {[%clk 0:00:17.5]} 44. Nc3 {[%clk 0:00:31.1]}
44... Bf3 {[%clk 0:00:17.3]} 45. h5 {[%clk 0:00:32.1]} 45... gxh5 {[%clk
0:00:18]} 46. gxh5 {[%clk 0:00:33.3]} 46... Bxh5 {[%clk 0:00:19.2]} 47. Kd2
{[%clk 0:00:32.4]} 47... Kg7 {[%clk 0:00:20.3]} 48. Ne4 {[%clk 0:00:28.3]} 48...
Bf7 {[%clk 0:00:15.5]} 49. Nd6 {[%clk 0:00:28.3]} 49... Bd5 {[%clk 0:00:15.4]}
50. Kc3 {[%clk 0:00:29.1]} 50... Kg6 {[%clk 0:00:15.6]} 51. Kd2 {[%clk
0:00:27.6]} 51... Bg8 {[%clk 0:00:14]} 52. Ke3 {[%clk 0:00:22.8]} 52... Kh5
{[%clk 0:00:12.7]} 53. Ne4 {[%clk 0:00:23.4]} 53... Kg6 {[%clk 0:00:11]} 54. Nd6
{[%clk 0:00:20.4]} 54... Be6 {[%clk 0:00:10.3]} 55. Ne4 {[%clk 0:00:18.4]} 55...
Bg8 {[%clk 0:00:08.8]} 56. Nc3 {[%clk 0:00:19.3]} 56... Kf5 {[%clk 0:00:09.7]}
57. Ne4 {[%clk 0:00:20]} 57... Kg6 {[%clk 0:00:10]} 1/2-1/2

[Event "*** Titled Tuesday Blitz"]
[Site "Chess.com"]
[Date "2019.12.03"]
[Round "2"]
[White "Sajkochess"]
[Black "ShahMatKanal"]
[Result "0-1"]
[WhiteElo "2248"]
[BlackElo "2484"]
[TimeControl "180+2"]
[EndTime "13:23:46 PST"]
[Termination "ShahMatKanal won by resignation"]

1. e4 {[%clk 0:03:01.9]} 1... c5 {[%clk 0:03:00.7]} 2. Nf3 {[%clk 0:03:02.8]}
2... Nc6 {[%clk 0:03:02]} 3. d4 {[%clk 0:03:04.2]} 3... cxd4 {[%clk 0:03:03.4]}
4. Nxd4 {[%clk 0:03:06.1]} 4... e5 {[%clk 0:03:05]} 5. Nb5 {[%clk 0:03:06.8]}
5... a6 {[%clk 0:03:06.5]} 6. N5c3 {[%clk 0:03:07.7]} 6... Bb4 {[%clk
0:03:04.5]} 7. Bc4 {[%clk 0:03:03.3]} 7... Nf6 {[%clk 0:03:03.5]} 8. O-O {[%clk
0:03:03]} 8... O-O {[%clk 0:03:04.6]} 9. Nd5 {[%clk 0:03:03]} 9... Nxe4 {[%clk
0:02:43.2]} 10. Qf3 {[%clk 0:02:18.1]} 10... Nd6 {[%clk 0:02:39]} 11. Bb3 {[%clk
0:02:04.5]} 11... Nd4 {[%clk 0:02:35.3]} 12. Qg4 {[%clk 0:01:59.7]} 12... Kh8
{[%clk 0:02:05.3]} 13. c3 {[%clk 0:01:39.4]} 13... f5 {[%clk 0:02:00.7]} 14. Qd1
{[%clk 0:01:23.3]} 14... Nxb3 {[%clk 0:01:55]} 15. Nxb4 {[%clk 0:01:23.1]} 15...
Nxa1 {[%clk 0:01:49]} 16. Qxd6 {[%clk 0:01:16.7]} 16... Qf6 {[%clk 0:01:34.1]}
17. Qxf6 {[%clk 0:01:03.3]} 17... gxf6 {[%clk 0:01:30.2]} 18. Bh6 {[%clk
0:01:02.9]} 18... Rg8 {[%clk 0:01:25.1]} 19. Na3 {[%clk 0:01:02.4]} 19... f4
{[%clk 0:01:14.8]} 20. Nd5 {[%clk 0:00:57.5]} 20... b5 {[%clk 0:01:02]} 21. Ne7
{[%clk 0:00:33.1]} 21... Rg4 {[%clk 0:00:45]} 22. h3 {[%clk 0:00:20.8]} 22...
Rh4 {[%clk 0:00:41.2]} 23. Bf8 {[%clk 0:00:21.4]} 23... Bb7 {[%clk 0:00:32.6]}
24. Nf5 {[%clk 0:00:22]} 24... Rh5 {[%clk 0:00:31.8]} 25. Nd6 {[%clk 0:00:17.9]}
25... Bc6 {[%clk 0:00:16.1]} 26. Be7 {[%clk 0:00:18.7]} 26... Kg7 {[%clk
0:00:11]} 27. Rxa1 {[%clk 0:00:19]} 27... Rg5 {[%clk 0:00:10.3]} 28. f3 {[%clk
0:00:11.1]} 28... Bxf3 {[%clk 0:00:11]} 29. Kf2 {[%clk 0:00:12.3]} 29... Bxg2
{[%clk 0:00:11.9]} 30. Rg1 {[%clk 0:00:11.8]} 30... f3 {[%clk 0:00:12.1]} 31.
Ne4 {[%clk 0:00:09.3]} 31... Rg6 {[%clk 0:00:13.3]} 32. Nc2 {[%clk 0:00:07.4]}
32... Re8 {[%clk 0:00:12]} 33. Bc5 {[%clk 0:00:07.1]} 33... d5 {[%clk
0:00:12.6]} 34. Ng3 {[%clk 0:00:06.7]} 34... e4 {[%clk 0:00:12.6]} 35. Be3
{[%clk 0:00:07.5]} 35... Bxh3 {[%clk 0:00:11]} 36. Nh5+ {[%clk 0:00:08.4]} 36...
Kf7 {[%clk 0:00:10.8]} 37. Nd4 {[%clk 0:00:08.9]} 37... Rxg1 {[%clk 0:00:10.9]}
38. Kxg1 {[%clk 0:00:10.2]} 38... Rg8+ {[%clk 0:00:11.6]} 39. Kh2 {[%clk
0:00:11.5]} 39... Bg4 {[%clk 0:00:09.8]} 40. Nf4 {[%clk 0:00:11.9]} 40... Bd7
{[%clk 0:00:07.6]} 41. Bf2 {[%clk 0:00:04]} 41... h5 {[%clk 0:00:07.8]} 42. Bg3
{[%clk 0:00:05]} 42... a5 {[%clk 0:00:07.1]} 43. Nxd5 {[%clk 0:00:04.3]} 43...
h4 {[%clk 0:00:08.4]} 44. Bxh4 {[%clk 0:00:04.6]} 44... Rg2+ {[%clk 0:00:09.6]}
45. Kh1 {[%clk 0:00:06]} 45... Rxb2 {[%clk 0:00:10.7]} 46. Bg3 {[%clk
0:00:04.6]} 46... Rxa2 {[%clk 0:00:10.4]} 47. Ne3 {[%clk 0:00:03.7]} 47... a4
{[%clk 0:00:10.6]} 48. Nec2 {[%clk 0:00:03.1]} 48... Rb2 {[%clk 0:00:10.4]} 49.
Kg1 {[%clk 0:00:04.3]} 49... f5 {[%clk 0:00:07.7]} 50. Kf2 {[%clk 0:00:05.6]}
50... Rb1 {[%clk 0:00:07.7]} 51. Ke3 {[%clk 0:00:06.7]} 51... Rg1 {[%clk
0:00:08.4]} 52. Kf4 {[%clk 0:00:07.8]} 52... Rb1 {[%clk 0:00:08.6]} 53. Ke5
{[%clk 0:00:08.5]} 53... Rb2 {[%clk 0:00:08.8]} 54. Bf4 {[%clk 0:00:08.9]} 54...
f2 {[%clk 0:00:09.5]} 55. Ne3 {[%clk 0:00:08.5]} 55... a3 {[%clk 0:00:10.7]} 56.
Bg3 {[%clk 0:00:06.5]} 56... a2 {[%clk 0:00:10.9]} 57. Bxf2 {[%clk 0:00:07.8]}
57... Rxf2 {[%clk 0:00:11]} 58. Nb3 {[%clk 0:00:08.1]} 58... Rb2 {[%clk
0:00:11.2]} 59. Na1 {[%clk 0:00:09.4]} 59... Rb1 {[%clk 0:00:11.6]} 60. Nec2
{[%clk 0:00:10.7]} 60... Rc1 {[%clk 0:00:11.9]} 61. Kf4 {[%clk 0:00:11.2]} 61...
Kf6 {[%clk 0:00:12.5]} 62. Ke3 {[%clk 0:00:11.4]} 62... Ke5 {[%clk 0:00:13.4]}
63. Kd2 {[%clk 0:00:12.8]} 63... Rh1 {[%clk 0:00:13.5]} 64. Nb3 {[%clk
0:00:11.7]} 64... Be6 {[%clk 0:00:13.5]} 65. Nbd4 {[%clk 0:00:12.6]} 65... a1=Q
{[%clk 0:00:13.6]} 66. Nxa1 {[%clk 0:00:13.5]} 66... Rxa1 {[%clk 0:00:15.5]} 67.
Nxb5 {[%clk 0:00:15]} 67... f4 {[%clk 0:00:15.7]} 0-1

[Event "*** Titled Tuesday Blitz"]
[Site "Chess.com"]
[Date "2019.12.03"]
[Round "2"]
[White "Vuk2000"]
[Black "arminmusovic"]
[Result "1/2-1/2"]
[WhiteElo "2757"]
[BlackElo "2542"]
[TimeControl "180+2"]
[EndTime "13:23:50 PST"]
[Termination "Game drawn - insufficient material"]

1. d4 {[%clk 0:03:01.9]} 1... d5 {[%clk 0:03:01]} 2. Bf4 {[%clk 0:03:02.8]} 2...
c5 {[%clk 0:03:02.1]} 3. e3 {[%clk 0:03:03.9]} 3... cxd4 {[%clk 0:03:03.7]} 4.
exd4 {[%clk 0:03:04.9]} 4... Nc6 {[%clk 0:03:05.3]} 5. c3 {[%clk 0:03:05.4]}
5... Nf6 {[%clk 0:03:06.2]} 6. Nd2 {[%clk 0:03:04]} 6... g6 {[%clk 0:03:06.5]}
7. Ngf3 {[%clk 0:03:04.2]} 7... Bg7 {[%clk 0:03:08]} 8. Bd3 {[%clk 0:03:04.4]}
8... O-O {[%clk 0:03:08.2]} 9. O-O {[%clk 0:03:05.2]} 9... Re8 {[%clk
0:03:09.6]} 10. Re1 {[%clk 0:03:02.9]} 10... Nd7 {[%clk 0:03:10]} 11. Bb5 {[%clk
0:03:01.9]} 11... a6 {[%clk 0:03:10.5]} 12. Bxc6 {[%clk 0:03:02.9]} 12... bxc6
{[%clk 0:03:11.9]} 13. Nb3 {[%clk 0:03:03.8]} 13... f6 {[%clk 0:03:10.6]} 14.
Bg3 {[%clk 0:02:53.6]} 14... e5 {[%clk 0:03:08.3]} 15. dxe5 {[%clk 0:02:51.2]}
15... fxe5 {[%clk 0:03:09.2]} 16. Rc1 {[%clk 0:02:48.3]} 16... e4 {[%clk
0:02:57.8]} 17. Nfd4 {[%clk 0:02:46.9]} 17... Ne5 {[%clk 0:02:47.7]} 18. Bxe5
{[%clk 0:02:44.5]} 18... Bxe5 {[%clk 0:02:49.6]} 19. Nxc6 {[%clk 0:02:42.9]}
19... Bxh2+ {[%clk 0:02:49.3]} 20. Kxh2 {[%clk 0:02:44.3]} 20... Qc7+ {[%clk
0:02:50.7]} 21. Kg1 {[%clk 0:02:35.6]} 21... Qxc6 {[%clk 0:02:52]} 22. Rc2
{[%clk 0:02:16]} 22... Qf6 {[%clk 0:02:47.8]} 23. Qxd5+ {[%clk 0:01:59.1]} 23...
Be6 {[%clk 0:02:48.9]} 24. Qd4 {[%clk 0:01:56.9]} 24... Qxd4 {[%clk 0:02:40.3]}
25. Nxd4 {[%clk 0:01:57.2]} 25... Bc4 {[%clk 0:02:41.6]} 26. Re3 {[%clk
0:01:39.1]} 26... Rab8 {[%clk 0:02:30.8]} 27. b3 {[%clk 0:01:39.5]} 27... Bd3
{[%clk 0:02:31.5]} 28. Rd2 {[%clk 0:01:40]} 28... Rec8 {[%clk 0:02:30.1]} 29.
Ne2 {[%clk 0:01:31.7]} 29... a5 {[%clk 0:02:19.8]} 30. c4 {[%clk 0:00:58.9]}
30... a4 {[%clk 0:02:15.5]} 31. Nd4 {[%clk 0:01:00.2]} 31... axb3 {[%clk
0:02:16]} 32. axb3 {[%clk 0:01:00]} 32... Bb1 {[%clk 0:01:47.7]} 33. Rd1 {[%clk
0:00:38.4]} 33... Ba2 {[%clk 0:01:23.7]} 34. Ra1 {[%clk 0:00:38.6]} 34... Ra8
{[%clk 0:01:23.7]} 35. Re2 {[%clk 0:00:37.9]} 35... Rd8 {[%clk 0:01:22.6]} 36.
Ne6 {[%clk 0:00:27.2]} 36... Bxb3 {[%clk 0:01:15.3]} 37. Rxa8 {[%clk 0:00:25.8]}
37... Rxa8 {[%clk 0:01:15.4]} 38. Rxe4 {[%clk 0:00:26.2]} 38... Re8 {[%clk
0:01:07.5]} 39. Ng5 {[%clk 0:00:05.9]} 39... Rxe4 {[%clk 0:00:48.9]} 40. Nxe4
{[%clk 0:00:07.8]} 40... Bxc4 {[%clk 0:00:50.6]} 41. Kh2 {[%clk 0:00:09.3]}
41... Kg7 {[%clk 0:00:51.4]} 42. Kg3 {[%clk 0:00:10.4]} 42... Bd5 {[%clk
0:00:52.5]} 43. Nc3 {[%clk 0:00:11.4]} 43... Bc6 {[%clk 0:00:53.3]} 44. f3
{[%clk 0:00:12.9]} 44... Kf6 {[%clk 0:00:54.4]} 45. Kf4 {[%clk 0:00:14.2]} 45...
g5+ {[%clk 0:00:54.9]} 46. Kg4 {[%clk 0:00:15]} 46... Kg6 {[%clk 0:00:56.3]} 47.
Kg3 {[%clk 0:00:15.5]} 47... h5 {[%clk 0:00:57]} 48. Ne2 {[%clk 0:00:16.9]}
48... Bd5 {[%clk 0:00:55.4]} 49. Kf2 {[%clk 0:00:17.3]} 49... Kf5 {[%clk
0:00:52.2]} 50. Ng3+ {[%clk 0:00:17.4]} 50... Kg6 {[%clk 0:00:53.5]} 51. Nf1
{[%clk 0:00:18.6]} 51... Be6 {[%clk 0:00:54.1]} 52. Ne3 {[%clk 0:00:16.2]} 52...
Kf6 {[%clk 0:00:53.7]} 53. Nf1 {[%clk 0:00:15.6]} 53... Kg6 {[%clk 0:00:53.3]}
54. Nd2 {[%clk 0:00:16.5]} 54... Kf5 {[%clk 0:00:53.6]} 55. Ne4 {[%clk
0:00:17.2]} 55... Bd5 {[%clk 0:00:50.3]} 56. Ng3+ {[%clk 0:00:17.5]} 56... Kg6
{[%clk 0:00:51.4]} 57. Ke3 {[%clk 0:00:18.6]} 57... h4 {[%clk 0:00:51.6]} 58.
Ne2 {[%clk 0:00:19.5]} 58... Be6 {[%clk 0:00:50.9]} 59. Nd4 {[%clk 0:00:19.2]}
59... Bd7 {[%clk 0:00:52.1]} 60. Kf2 {[%clk 0:00:20.1]} 60... Kf6 {[%clk
0:00:51.8]} 61. Nc2 {[%clk 0:00:20.4]} 61... Be6 {[%clk 0:00:51.8]} 62. Ne1
{[%clk 0:00:19.3]} 62... Kf5 {[%clk 0:00:51.3]} 63. Nc2 {[%clk 0:00:19.7]} 63...
Bd7 {[%clk 0:00:51.9]} 64. Nd4+ {[%clk 0:00:20.5]} 64... Kf6 {[%clk 0:00:52.2]}
65. Ne2 {[%clk 0:00:21.1]} 65... Kf5 {[%clk 0:00:50.7]} 66. Ke3 {[%clk
0:00:21.4]} 66... Ke5 {[%clk 0:00:51]} 67. Ng1 {[%clk 0:00:21.8]} 67... Bc8
{[%clk 0:00:51]} 68. Ne2 {[%clk 0:00:22.8]} 68... Bd7 {[%clk 0:00:52.4]} 69. Kf2
{[%clk 0:00:23.8]} 69... Kf5 {[%clk 0:00:51.9]} 70. Nc3 {[%clk 0:00:24.2]} 70...
Bc6 {[%clk 0:00:49.9]} 71. Nb1 {[%clk 0:00:24]} 71... Kg6 {[%clk 0:00:50.7]} 72.
Nd2 {[%clk 0:00:25]} 72... Bd5 {[%clk 0:00:51.7]} 73. Nf1 {[%clk 0:00:25.6]}
73... Be6 {[%clk 0:00:51.8]} 74. Ne3 {[%clk 0:00:26.4]} 74... Kh5 {[%clk
0:00:53.2]} 75. Nc2 {[%clk 0:00:26.1]} 75... Kg6 {[%clk 0:00:54.6]} 76. Nd4
{[%clk 0:00:27.1]} 76... Bd7 {[%clk 0:00:56.1]} 77. Ke3 {[%clk 0:00:28.6]} 77...
Kf6 {[%clk 0:00:56.8]} 78. Ke4 {[%clk 0:00:28.9]} 78... h3 {[%clk 0:00:56.7]}
79. gxh3 {[%clk 0:00:28.8]} 79... Bxh3 {[%clk 0:00:58.6]} 80. f4 {[%clk
0:00:30.2]} 80... Bg2+ {[%clk 0:00:58.6]} 81. Ke3 {[%clk 0:00:30.6]} 81... gxf4+
{[%clk 0:00:53.3]} 82. Kxf4 {[%clk 0:00:31.6]} 1/2-1/2

[Event "*** Titled Tuesday Blitz"]
[Site "Chess.com"]
[Date "2019.12.03"]
[Round "2"]
[White "gemarin"]
[Black "mitrabhaa"]
[Result "0-1"]
[WhiteElo "2121"]
[BlackElo "2636"]
[TimeControl "180+2"]
[EndTime "13:23:54 PST"]
[Termination "mitrabhaa won on time"]

1. d4 {[%clk 0:03:00.5]} 1... Nf6 {[%clk 0:02:58.7]} 2. c4 {[%clk 0:03:00.8]}
2... c5 {[%clk 0:02:56.3]} 3. d5 {[%clk 0:03:01.1]} 3... e6 {[%clk 0:02:56.4]}
4. Nc3 {[%clk 0:03:01.2]} 4... exd5 {[%clk 0:02:56.8]} 5. cxd5 {[%clk
0:03:02.4]} 5... d6 {[%clk 0:02:58.1]} 6. e4 {[%clk 0:03:03]} 6... g6 {[%clk
0:02:58.4]} 7. f4 {[%clk 0:03:03.6]} 7... Bg7 {[%clk 0:02:58.5]} 8. e5 {[%clk
0:03:01.7]} 8... Nfd7 {[%clk 0:02:56.7]} 9. Nb5 {[%clk 0:02:46.3]} 9... O-O
{[%clk 0:02:19.6]} 10. Nxd6 {[%clk 0:02:44.2]} 10... Nxe5 {[%clk 0:02:20.2]} 11.
fxe5 {[%clk 0:02:43.5]} 11... Qh4+ {[%clk 0:02:20.9]} 12. g3 {[%clk 0:02:36.6]}
12... Qe7 {[%clk 0:02:20.4]} 13. Nc4 {[%clk 0:02:29.7]} 13... b5 {[%clk
0:02:19.9]} 14. d6 {[%clk 0:02:21]} 14... Qe6 {[%clk 0:02:20.4]} 15. Bg2 {[%clk
0:02:00.8]} 15... bxc4 {[%clk 0:02:19.5]} 16. Bxa8 {[%clk 0:02:00.5]} 16... Bxe5
{[%clk 0:02:20.1]} 17. Kf1 {[%clk 0:02:00]} 17... Rd8 {[%clk 0:02:15.5]} 18. Qd5
{[%clk 0:01:43.9]} 18... Qf6+ {[%clk 0:02:11.4]} 19. Qf3 {[%clk 0:01:43.3]}
19... Qxd6 {[%clk 0:02:10.7]} 20. Bg5 {[%clk 0:01:29.8]} 20... Re8 {[%clk
0:01:45.1]} 21. Rd1 {[%clk 0:01:20.3]} 21... Qa6 {[%clk 0:01:45.5]} 22. Kg2
{[%clk 0:01:15.1]} 22... Bxb2 {[%clk 0:01:39.3]} 23. Bd5 {[%clk 0:01:13.9]}
23... Bf5 {[%clk 0:01:25.9]} 24. g4 {[%clk 0:01:07]} 24... Be6 {[%clk 0:01:20]}
25. Bxe6 {[%clk 0:01:07.4]} 25... Qxe6 {[%clk 0:01:20.1]} 26. Nh3 {[%clk
0:01:04.9]} 26... Nc6 {[%clk 0:01:20.8]} 27. Rhe1 {[%clk 0:00:58.5]} 27... Ne5
{[%clk 0:01:21.4]} 28. Qe4 {[%clk 0:00:33.1]} 28... Bd4 {[%clk 0:01:09]} 29. Kh1
{[%clk 0:00:19.6]} 29... c3 {[%clk 0:01:09.6]} 30. Bh4 {[%clk 0:00:16.2]} 30...
Qxa2 {[%clk 0:01:06.8]} 31. Bg3 {[%clk 0:00:14.8]} 31... f6 {[%clk 0:01:07.1]}
32. g5 {[%clk 0:00:15.4]} 32... f5 {[%clk 0:01:05.7]} 33. Qb7 {[%clk 0:00:14]}
33... c2 {[%clk 0:01:03.9]} 34. Rc1 {[%clk 0:00:14]} 34... Re7 {[%clk
0:01:01.9]} 35. Qa8+ {[%clk 0:00:13.4]} 35... Kf7 {[%clk 0:01:02.2]} 36. Nf4
{[%clk 0:00:14.3]} 36... Rd7 {[%clk 0:00:58.4]} 37. Re2 {[%clk 0:00:11.2]} 37...
Bb2 {[%clk 0:00:53.5]} 38. Rexc2 {[%clk 0:00:12.2]} 38... Qb3 {[%clk 0:00:51.4]}
39. Qg2 {[%clk 0:00:12.2]} 39... Bxc1 {[%clk 0:00:51.8]} 40. Rxc1 {[%clk
0:00:13.7]} 40... c4 {[%clk 0:00:53]} 41. Qe2 {[%clk 0:00:11.5]} 41... Qb5
{[%clk 0:00:39.5]} 42. Ng2 {[%clk 0:00:08.5]} 42... Nd3 {[%clk 0:00:38.4]} 43.
Ra1 {[%clk 0:00:06.4]} 43... c3 {[%clk 0:00:38.1]} 44. Qc2 {[%clk 0:00:06.2]}
44... Qb2 {[%clk 0:00:38.5]} 45. Ra2 {[%clk 0:00:04.1]} 45... Qc1+ {[%clk
0:00:30.4]} 46. Qxc1 {[%clk 0:00:04.4]} 46... Nxc1 {[%clk 0:00:31.6]} 47. Rc2
{[%clk 0:00:05.6]} 47... Rd1+ {[%clk 0:00:33.2]} 48. Ne1 {[%clk 0:00:06.6]}
48... Nd3 {[%clk 0:00:34.4]} 49. Rxc3 {[%clk 0:00:06.6]} 49... Nxe1 {[%clk
0:00:35.6]} 50. Bxe1 {[%clk 0:00:07.3]} 50... Rxe1+ {[%clk 0:00:36.2]} 51. Kg2
{[%clk 0:00:09.2]} 51... Re7 {[%clk 0:00:37.5]} 52. Rc8 {[%clk 0:00:09.9]} 52...
Ke6 {[%clk 0:00:38.8]} 53. Ra8 {[%clk 0:00:09.3]} 53... Ke5 {[%clk 0:00:39.5]}
54. Kf3 {[%clk 0:00:10.7]} 54... Kd4 {[%clk 0:00:40.5]} 55. h4 {[%clk 0:00:11]}
55... Kc5 {[%clk 0:00:41.5]} 56. h5 {[%clk 0:00:12]} 56... Kb5 {[%clk
0:00:40.8]} 57. Rg8 {[%clk 0:00:12.4]} 57... gxh5 {[%clk 0:00:41.3]} 58. Rf8
{[%clk 0:00:12.5]} 58... a5 {[%clk 0:00:42.2]} 59. Rxf5+ {[%clk 0:00:13.3]}
59... Kb4 {[%clk 0:00:43.3]} 60. Rf8 {[%clk 0:00:13.4]} 60... Rb7 {[%clk
0:00:43.6]} 61. Rb8 {[%clk 0:00:15.3]} 61... Rxb8 {[%clk 0:00:43.2]} 0-1